Cogmind - Beta 10 X2 @@@ ROGUE MODE // 2020.06.20 @ 18:44:13 Player: PlasticHeart Result: Self-destructed Performance ------------- Evolutions (2) 1000 Regions Visited (7) 1400 Robots Destroyed (92) 460 Value Destroyed (2465) 2465 Prototype IDs (30) 600 Alien Tech Used (0) 0 Bonus (440) 440 TOTAL SCORE: 6365 Bonus ------- High Alert Combat Kills 213 Follower Combat Kills 93 Aligned with FarCom 300 Friendly Fire -166 Cogmind --------- Core Integrity 347/550 Matter 168/300 Energy 280/280 System Corruption 8% Temperature Cool (0) Movement Rolling (100) Ox2 Location -8/Materials Parts ------- > --- POWER (1) -------- Heavy Ion Engine > --- PROPULSION (4) --- Wheel Wheel > --- UTILITY (4) ------ Improved Heat Sink Medium Storage Unit Large Storage Unit Large Storage Unit > --- WEAPON (2) ------- Assault Cannon Assault Cannon > --- INVENTORY (20) --- Light Nuclear Core Light Nuclear Core Light Nuclear Core Light Nuclear Core Wheel Medium Storage Unit Hacking Suite Hacking Suite Hacking Suite Trap Reconfigurator YOLO Cannon Assault Cannon Assault Cannon Datajack Improved Datajack Scythe Deploy-a-Sentry Deploy-a-Sentry Deploy-a-Sentry Peak State ------------ > --- POWER ------------ Heavy Ion Engine > --- PROPULSION ------- Light Treads Light Treads Light Treads Armored Wheel > --- UTILITY ---------- Improved Heat Sink Medium Storage Unit Large Storage Unit Large Storage Unit > --- WEAPON ----------- Improved Assault Rifle Improved Assault Rifle > --- INVENTORY -------- Light Nuclear Core Light Nuclear Core Light Nuclear Core Light Nuclear Core Wheel Medium Storage Unit Hacking Suite Hacking Suite Hacking Suite Trap Reconfigurator YOLO Cannon Heavy Assault Rifle Improved Assault Rifle Datajack Scythe Deploy-a-Sentry Deploy-a-Sentry Deploy-a-Sentry [Rating: 28] Favorites ----------- Power Heavy Ion Engine Engine Heavy Ion Engine Power Core Light Nuclear Core Propulsion Light Treads Treads Light Treads Wheel Wheel Utility Medium Storage Unit Device Improved Heat Sink Storage Medium Storage Unit Protection Light Armor Plating Weapon Improved Assault Rifle Energy Gun Improved EM Shotgun Ballistic Gun Improved Assault Rifle Ballistic Cannon Assault Cannon Launcher Rocket Launcher Build | -11 -10 -10 -9 -9 -9 -8 -8 ------- Run | Scr Mat Min Mat Min Exi Min Mat Slots Evolved 4 | . . . 2 . . . 2 Power . | . . . . . . . . Propulsion 2 | . . . 1 . . . 1 Utility 2 | . . . 1 . . . 1 Weapon . | . . . . . . . . Parts Attached 63 | 6 2 6 42 . . . 7 Power 8 | 1 1 1 5 . . . . Engine 7 | 1 1 . 5 . . . . Core 1 | . . 1 . . . . . Reactor . | . . . . . . . . Propulsion 22 | 2 . 1 15 . . . 4 Treads 13 | . . . 13 . . . . Leg . | . . . . . . . . Wheel 9 | 2 . 1 2 . . . 4 Hover . | . . . . . . . . Flight . | . . . . . . . . Utility 11 | 1 1 2 6 . . . 1 Device 3 | . . 2 . . . . 1 Storage 6 | 1 . . 5 . . . . Processor . | . . . . . . . . Hackware . | . . . . . . . . Protection 2 | . 1 . 1 . . . . Artifact . | . . . . . . . . Weapon 22 | 2 . 2 16 . . . 2 Energy Gun 5 | . . . 5 . . . . Energy Cannon . | . . . . . . . . Ballistic Gun 13 | 2 . 2 9 . . . . Ballistic Cannon 2 | . . . . . . . 2 Launcher 2 | . . . 2 . . . . Special Weapon . | . . . . . . . . Impact Weapon . | . . . . . . . . Slashing Weapon . | . . . . . . . . Piercing Weapon . | . . . . . . . . Special Melee Weapon . | . . . . . . . . Unidentified Prototypes 1 | . . . 1 . . . . Parts Lost 13 | . . 1 7 . . . 5 Power 1 | . . . 1 . . . . Propulsion 9 | . . . 4 . . . 5 Utility 1 | . . 1 . . . . . Weapon 2 | . . . 2 . . . . Highest Loss Streak 3 | . . 1 2 . . . 3 Average Slot Usage (%) 97 | . 96 99 96 100 100 100 91 Engine 10 | . 14 9 10 11 11 11 9 Core 1 | . . 4 . . . . . Treads 20 | . . . 26 33 33 33 14 Wheel 10 | . 28 28 4 . . . 17 Device 3 | . . 12 1 . . . 4 Storage 26 | . 14 14 29 33 33 33 27 Protection 1 | . 10 1 1 . . . . Energy Gun 1 | . . . 4 . . . . Ballistic Gun 20 | . 28 28 17 22 22 22 13 Naked Turns . | . . . . . . . . Heaviest Build 59 | 13 16 14 56 54 54 54 59 Greatest Support 63 | 26 26 26 63 60 60 60 60 Greatest Overweight (x) 5 | . . . 2 . . . 5 Average Overweight (x) . | . . . . . . . . Largest Inventory Capacity 20 | 6 6 6 20 20 20 20 20 Average Capacity 14 | 4 6 6 13 20 20 20 20 Most Carried 20 | 3 6 6 17 16 20 20 20 Average Carried 12 | 1 4 5 12 15 18 20 19 Final Capacity 20 | 6 6 6 20 20 20 20 20 Final Carried 20 | 2 6 6 14 16 20 20 20 Class Distribution -------------------- 41% | Hauler-Mutant 33% | Mutant 25% | Scavenger-Mutant Dominant Class ---------------- Mutant | -10/Materials Mutant | -10/Mines Scavenger-Mutant | -9/Materials Hauler-Mutant | -9/Mines Hauler-Mutant | -9/Exiles Hauler-Mutant | -8/Mines Hauler-Mutant | -8/Materials Resources | -11 -10 -10 -9 -9 -9 -8 -8 ----------- Run | Scr Mat Min Mat Min Exi Min Mat Matter Collected 1977 | 266 128 186 1140 6 . . 251 Remotely . | . . . . . . . . Salvage Created 3329 | 66 351 238 2154 26 . . 494 Parts 198 | 1 14 11 140 2 . . 30 Haulers Intercepted 6 | . 1 . 5 . . . . Recyclers Shooed . | . . . . . . . . Parts Field Recycled . | . . . . . . . . Retrieved Matter . | . . . . . . . . Parts Self-Destructed . | . . . . . . . . Prevented . | . . . . . . . . Kills | -11 -10 -10 -9 -9 -9 -8 -8 ------- Run | Scr Mat Min Mat Min Exi Min Mat Combat Hostiles Destroyed 61 | . 4 5 43 . . . 9 Guns 49 | . 4 5 32 . . . 8 Cannons 1 | . . . . . . . 1 AOE 11 | . . . 11 . . . . Classes Destroyed 14 | 1 3 . 9 . . . 1 Worker 7 | . . . 2 1 . . 4 Builder 3 | . . . 3 . . . . Tunneler 3 | . . . 3 . . . . Hauler 6 | . 1 . 5 . . . . Recycler 2 | 1 1 . . . . . . Mechanic 1 | . . . 1 . . . . Operator 5 | . . . 3 . . . 2 Watcher 3 | . 1 . 2 . . . . Swarmer 5 | . . . 3 . . . 2 Grunt 42 | . 4 5 28 . . . 5 Brawler 4 | . . . 4 . . . . Duelist 2 | . . . 2 . . . . Sentry 7 | . . . 7 . . . . Hunter 2 | . . . . . . . 2 Best Kill Streak 14 | 1 4 2 14 1 . . 3 Combat Bots Only 10 | . 2 2 10 . . . 3 Max Kills in Single Turn 5 | 1 1 1 5 1 . . 1 Gunslinging . | . . . . . . . . Exploded 2 | . . . 2 . . . . Melee . | . . . . . . . . Uniques/NPCs Destroyed . | . . . . . . . . Combat | -11 -10 -10 -9 -9 -9 -8 -8 -------- Run | Scr Mat Min Mat Min Exi Min Mat Damage Taken 3406 | . 85 254 2107 . . 16 944 Core 536 | . . 33 300 . . . 203 Absorbed by Shields . | . . . . . . . . Core Remaining (%) 70 | 100 . 86 . . . 25 . Volleys Fired 239 | 1 18 21 147 1 . . 51 Largest 2 | 2 2 2 2 2 . . 2 Hottest 90 | 40 40 40 90 46 . . 88 Shots Fired 462 | 2 36 42 278 2 . . 102 Gun 435 | 2 36 42 267 2 . . 86 Cannon 16 | . . . . . . . 16 Launcher 11 | . . . 11 . . . . Special . | . . . . . . . . Kinetic 392 | 2 36 42 208 2 . . 102 Thermal . | . . . . . . . . Explosive 11 | . . . 11 . . . . Electromagnetic 59 | . . . 59 . . . . Robot Hit Streak 20 | 2 7 10 20 13 . . 14 Robot Miss Streak 4 | . 4 2 3 . . . 2 Penetration Max . | . . . . . . . . Secondary Targets 6 | . 1 . 4 . . . 1 Max Gunslinging Chain 1 | . 1 . 1 . . . 1 Shots Hit Robots 329 | 2 22 27 210 1 . . 67 Core Hits 169 | 2 14 12 111 1 . . 29 Critical Hits 2 | . . . 2 . . . . Critical Kills 2 | . . . 2 . . . . Critical Parts Destroyed . | . . . . . . . . Melee Attacks . | . . . . . . . . Impact . | . . . . . . . . Slashing . | . . . . . . . . Piercing . | . . . . . . . . Sneak Attacks . | . . . . . . . . Combat Hostiles . | . . . . . . . . Follow-up Attacks . | . . . . . . . . Damage Inflicted 6399 | 23 303 314 4813 17 . . 929 Guns 4634 | 23 303 314 3170 17 . . 807 Cannons 122 | . . . . . . . 122 Explosions 1643 | . . . 1643 . . . . Melee . | . . . . . . . . Ramming . | . . . . . . . . Kinetic 3720 | 23 303 314 2134 17 . . 929 Thermal 363 | . . . 363 . . . . Explosive 1280 | . . . 1280 . . . . Electromagnetic 1036 | . . . 1036 . . . . Impact . | . . . . . . . . Slashing . | . . . . . . . . Piercing . | . . . . . . . . Highest Corruption 8 | . . . . . . . 8 Average Corruption 8 | . . . . . . . 8 Corruption Purged . | . . . . . . . . Overload Shots . | . . . . . . . . Overflow Damage 65 | . . . 63 . . . 2 Projectiles 2 | . . . . . . . 2 Explosions 63 | . . . 63 . . . . Melee . | . . . . . . . . Knockbacks . | . . . . . . . . Impact . | . . . . . . . . Kinetic . | . . . . . . . . Secondary . | . . . . . . . . Self-Inflicted Damage 115 | . . . 115 . . . . Shots 5 | . . . 5 . . . . Rammed . | . . . . . . . . Targets Rammed . | . . . . . . . . Kicked . | . . . . . . . . Crushed . | . . . . . . . . Highest Temperature 396 | . 11 32 396 . . . . Average Temperature 76 | . 4 20 87 . . . . Received Heat Transfer 1164 | . 51 144 843 . . . 126 Effects 1 | . . . 1 . . . . Shutdowns 1 | . . . 1 . . . . Siege Activations . | . . . . . . . . Robots Corrupted . | . . . . . . . . Combat Hostiles . | . . . . . . . . Parts Fried 4 | . . . 4 . . . . Impact Corruptions . | . . . . . . . . Robots Melted . | . . . . . . . . Combat Hostiles . | . . . . . . . . Parts Melted . | . . . . . . . . Heat Transferred 388 | . . . 388 . . . . Parts Sabotaged . | . . . . . . . . Parts Stolen . | . . . . . . . . Parts Stripped . | . . . . . . . . Power Chain Reactions 4 | . . . 4 . . . . Missiles Intercepted . | . . . . . . . . Alert | -11 -10 -10 -9 -9 -9 -8 -8 ------- Run | Scr Mat Min Mat Min Exi Min Mat Peak Influence 644 | 5 151 148 644 255 . . 269 Average Influence 262 | 1 74 96 441 254 . . 101 Maximum Alert Level 2 | . . . 2 1 . . 1 Low Security (%) 50 | 100 100 100 9 . . 100 90 Level 1 17 | . . . 25 100 . . 9 Level 2 32 | . . . 65 . . . . Level 3 . | . . . . . . . . Level 4 . | . . . . . . . . Level 5 . | . . . . . . . . High Security . | . . . . . . . . Max Security . | . . . . . . . . Squads Dispatched 12 | . . . 9 . . . 3 Investigation 2 | . . . 2 . . . . Extermination . | . . . . . . . . Reinforcement 7 | . . . 5 . . . 2 Assault 2 | . . . 2 . . . . Garrison 1 | . . . . . . . 1 Intercept . | . . . . . . . . Construction Impeded 1 | . . . 1 . . . . Haulers Reinforced . | . . . . . . . . Stealth | -11 -10 -10 -9 -9 -9 -8 -8 --------- Run | Scr Mat Min Mat Min Exi Min Mat Distress Signals 6 | . . . 3 . . . 3 Communications Jammed . | . . . . . . . . Distress Signals . | . . . . . . . . Times Spotted 115 | . 8 6 82 . . 3 16 Peak Tracking Total 10 | . 4 2 10 . . 3 4 Tactical Retreats 11 | . 1 . 9 . . . 1 Traps | -11 -10 -10 -9 -9 -9 -8 -8 ------- Run | Scr Mat Min Mat Min Exi Min Mat Traps Triggered 1 | . . . 1 . . . . Indirectly . | . . . . . . . . Trap Hack Attempts . | . . . . . . . . Triggered . | . . . . . . . . Disarmed . | . . . . . . . . Reprogrammed . | . . . . . . . . Reused . | . . . . . . . . Traps Extracted . | . . . . . . . . Installed . | . . . . . . . . Triggered 1 | . . . 1 . . . . Machines | -11 -10 -10 -9 -9 -9 -8 -8 ---------- Run | Scr Mat Min Mat Min Exi Min Mat Machines Disabled 2 | . . . 1 . . . 1 Max in Single Turn 1 | . . . 1 . . . 1 Garrison Access 1 | . . . . . . . 1 Machines Sabotaged . | . . . . . . . . Garrisons Compromised . | . . . . . . . . Overloaded Fab Kills . | . . . . . . . . Fab Network Shutdowns . | . . . . . . . . Hacking | -11 -10 -10 -9 -9 -9 -8 -8 --------- Run | Scr Mat Min Mat Min Exi Min Mat Machines Accessed 17 | . 2 1 7 . 2 . 5 Terminals 12 | . 2 . 6 . . . 4 Fabricators . | . . . . . . . . Repair Stations . | . . . . . . . . Recycling Units . | . . . . . . . . Scanalyzers 1 | . . . 1 . . . . Garrison Access 1 | . . . . . . . 1 Total Hacks 41 | . 6 1 15 . 5 . 14 Successful 28 | . 4 1 10 . 5 . 8 Failed 13 | . 2 . 5 . . . 6 Catastrophic 2 | . . . 2 . . . . Database Lockouts . | . . . . . . . . Manual 16 | . 2 . 9 . 1 . 4 Terminals 33 | . 6 . 14 . . . 13 Fabricators . | . . . . . . . . Repair Stations . | . . . . . . . . Recycling Units . | . . . . . . . . Scanalyzers 1 | . . . 1 . . . . Garrison Access 1 | . . . . . . . 1 Terminal Hacks 22 | . 2 1 7 . 5 . 7 Record 5 | . . . . . 4 . 1 Prototype ID Bank 3 | . 1 . 1 . . . 1 Open Door 1 | . . 1 . . . . . Unreport Threat 1 | . . . 1 . . . . Locate Traps 3 | . 1 . 1 . . . 1 Recall Investigation 1 | . . . 1 . . . . Recall Reinforcements 1 | . . . 1 . . . . Hauler Manifests 3 | . . . 1 . . . 2 Zone Layout 3 | . . . 1 . . . 2 EX-Prototype ID Bank 1 | . . . . . 1 . . Fabricator Hacks . | . . . . . . . . Repair Station Hacks . | . . . . . . . . Recycling Unit Hacks . | . . . . . . . . Scanalyzer 1 | . . . 1 . . . . Insert Component 1 | . . . 1 . . . . Garrison Access Hacks 1 | . . . . . . . 1 Seal Access 1 | . . . . . . . 1 Unauthorized Hacks 4 | . 2 . 2 . . . . Terminals 4 | . 2 . 2 . . . . Track 1 | . 1 . . . . . . Botnet 3 | . 1 . 2 . . . . Fabricators . | . . . . . . . . Repair Stations . | . . . . . . . . Recycling Units . | . . . . . . . . Scanalyzers . | . . . . . . . . Garrison Access . | . . . . . . . . Data Cores Recovered . | . . . . . . . . Used . | . . . . . . . . Hacking Detections 9 | . 2 . 4 . . . 3 Full Trace Events . | . . . . . . . . Feedback Events . | . . . . . . . . Feedback Blocked . | . . . . . . . . Robot Schematics Acquired . | . . . . . . . . Robots Built . | . . . . . . . . Matter . | . . . . . . . . Time . | . . . . . . . . Total Robot Build Rating . | . . . . . . . . Part Schematics Acquired . | . . . . . . . . Parts Built . | . . . . . . . . Matter . | . . . . . . . . Time . | . . . . . . . . Total Part Build Rating . | . . . . . . . . Parts Repaired . | . . . . . . . . Time . | . . . . . . . . Parts Recycled . | . . . . . . . . Recycled Matter . | . . . . . . . . Retrieved Matter . | . . . . . . . . Retrieved Components . | . . . . . . . . Parts Scanalyzed . | . . . . . . . . Part Schematics Acquired . | . . . . . . . . Parts Damaged . | . . . . . . . . Bothacking | -11 -10 -10 -9 -9 -9 -8 -8 ------------ Run | Scr Mat Min Mat Min Exi Min Mat Used RIF Installer . | . . . . . . . . Robots Hacked . | . . . . . . . . Non-combat . | . . . . . . . . Combat . | . . . . . . . . Robot Hacks Applied . | . . . . . . . . Relay Couplers Released . | . . . . . . . . Robots Rewired . | . . . . . . . . Allies Hacked . | . . . . . . . . Hacks Repelled . | . . . . . . . . Allies | -11 -10 -10 -9 -9 -9 -8 -8 -------- Run | Scr Mat Min Mat Min Exi Min Mat Total Allies 4 | . . 4 . . . . . Largest Group 4 | . . 4 3 . . . . Highest-Rated Group 71 | . . 71 40 . . . . Highest-Rated Ally 31 | . . 31 16 . . . . Total Orders 1 | . . 1 . . . . . STAY 1 | . . 1 . . . . . Ally Attacks 27 | . . 7 20 . . . . Total Damage 323 | . . 104 219 . . . . Kills 3 | . . 1 2 . . . . Allies Corrupted . | . . . . . . . . Allies Melted . | . . . . . . . . Intel | -11 -10 -10 -9 -9 -9 -8 -8 ------- Run | Scr Mat Min Mat Min Exi Min Mat Robot Analysis Total . | . . . . . . . . Derelict Logs Recovered 2 | . . 2 . . . . . Drone Launches . | . . . . . . . . Drone Recoveries . | . . . . . . . . Exploration | -11 -10 -10 -9 -9 -9 -8 -8 ------------- Run | Scr Mat Min Mat Min Exi Min Mat Turns Passed 4286 | 46 234 697 1889 124 451 274 571 Spaces Moved 2671 | 37 189 672 934 75 279 163 322 Core 3 | 3 . . . . . . . Treads 1334 | . . . 694 75 279 163 123 Legs . | . . . . . . . . Wheels 1334 | 34 189 672 240 . . . 199 Hover . | . . . . . . . . Flight . | . . . . . . . . Fastest Speed 50 | 50 90 90 86 160 160 160 90 Average Speed 125 | 87 90 90 142 160 160 160 118 Slowest Speed 180 | 100 90 90 180 160 160 160 160 Overloaded Moves . | . . . . . . . . Propulsion Burnouts . | . . . . . . . . Robots Hopped 1 | . . 1 . . . . . Cave-ins Triggered 1 | . . . . . . . 1 Exploration Rate (%) 44 | 3 38 97 76 10 61 36 38 Regions Visited 7 Branch Regions 4 Pre-discovered Areas 1 | . . . . . 1 . . Known Exits Taken 2 | . . . 1 . 1 . . Unknown Exits Taken 5 | 1 1 1 . 1 . 1 . Scrap Searched 5 | . . 3 . . . 2 . Spaces Dug 2 | . . . . . . . 2 Terrain Destroyed 83 | . . . 81 . . . 2 Melee . | . . . . . . . . Projectile 2 | . . . . . . . 2 AOE 81 | . . . 81 . . . . Actions | -11 -10 -10 -9 -9 -9 -8 -8 --------- Run | Scr Mat Min Mat Min Exi Min Mat Total 3146 | 46 217 721 1213 77 285 176 411 Wait 83 | . . 16 36 . . 14 17 Move 2662 | 36 188 669 933 74 278 162 322 Hop 1 | . . 1 . . . . . Pick Up 51 | 3 7 3 24 2 5 . 7 Fast Attach 25 | 5 . 2 13 . . . 5 Attach 10 | 1 1 . 6 . . . 2 Detach . | . . . . . . . . Swap 28 | . 1 4 23 . . . . Drop 47 | . 2 5 31 . 2 . 7 Fire 239 | 1 18 21 147 1 . . 51 Melee . | . . . . . . . . Ram . | . . . . . . . . Kick . | . . . . . . . . Crush . | . . . . . . . . Escape Stasis . | . . . . . . . . Rewire . | . . . . . . . . Trap . | . . . . . . . . Miscellaneous . | . . . . . . . . Route ------- -11/Scrapyard -10/Materials -10/Mines (discovered 2 exits: *Mat x2) -9/Materials (discovered 4 exits: *Mat x3 / *Min) -9/Mines -9/Exiles (discovered 2 exits: *Min x2) -8/Mines -8/Materials (discovered 2 exits: [*Fac] / Sto) History --------- Turn | Location | Event 22 | -11/Scrapyard | Discovered new exit (range 16) 47 | -11/Scrapyard | Entered Materials 262 | -10/Materials | Discovered new exit (range 7) 281 | -10/Materials | Entered Mines 322 | -10/Mines | Build established: Mutant 478 | -10/Mines | Discovered new exit (range 6) 565 | -10/Mines | Assisted by bots powering up and referring to "LRC-V3" 595 | -10/Mines | Received a Rocket Launcher from a helpful Derelict 613 | -10/Mines | Discovered new exit (range 4) 655 | -10/Mines | Received a Mining Laser from a helpful Derelict 860 | -10/Mines | Met a Derelict who couldn't figure out how to use a Trap Extractor 978 | -10/Mines | Entered Materials 978 | -9/Materials | Accompanied by 3 allies 978 | -9/Materials | Evolved 2 slots: Propulsion x1, Utility x1 979 | -9/Materials | Identified exit to Mines 1147 | -9/Materials | Destroyed 10 combat bots 1630 | -9/Materials | Discovered new exit (range 15) 1992 | -9/Materials | Build established: Scavenger-Mutant 2178 | -9/Materials | First assault squad dispatched 2203 | -9/Materials | Discovered new exit (range 4) 2241 | -9/Materials | Core integrity fell below 50% 2750 | -9/Materials | Discovered new exit (range 8) 2833 | -9/Materials | Build established: Hauler-Mutant 2867 | -9/Materials | Entered Mines 2911 | -9/Mines | Deemed a non-threat by the Exiles lab entrance 2911 | -9/Mines | Discovered new exit (range 5) 2953 | -9/Mines | Assembled infested the area 2991 | -9/Mines | Entered Exiles 2992 | -9/Exiles | Identified exit to Mines 3036 | -9/Exiles | Met 8R-AWN 3059 | -9/Exiles | Met EX-HEX 3113 | -9/Exiles | Met EX-BIN 3135 | -9/Exiles | Aligned with FarCom system 3137 | -9/Exiles | Given EX-Vault access code 3175 | -9/Exiles | Opened EX-Vault 3191 | -9/Exiles | Found YOLO Cannon 3196 | -9/Exiles | Found Deploy-a-Sentry 3198 | -9/Exiles | Found Deploy-a-Sentry 3201 | -9/Exiles | Found Deploy-a-Sentry 3209 | -9/Exiles | Found Trap Reconfigurator 3242 | -9/Exiles | Warned to stay clear of 0b10 Research branches 3287 | -9/Exiles | Met EX-DEC 3380 | -9/Exiles | Learned location of Zion (-6) 3423 | -9/Exiles | Discovered exit to Mines (range 14) 3442 | -9/Exiles | Stole three prototypes: Trap Reconfigurator, YOLO Cannon, Deploy-a-Sentry 3442 | -9/Exiles | Entered Mines 3692 | -8/Mines | Discovered new exit (range 15) 3716 | -8/Mines | Entered Materials 3716 | -8/Materials | Evolved 2 slots: Propulsion x1, Utility x1 3717 | -8/Materials | Identified exit to Storage 4022 | -8/Materials | Garrison activated, responded to threat 4054 | -8/Materials | Lost 3 parts (3n) 4235 | -8/Materials | Discovered new exit (range 11) 4285 | -8/Materials | Crushed by falling debris 4287 | -8/Materials | Self-destructed Last Messages --------------- 04164_ Acquired Assault Cannon. 04190_ Connecting with Terminal... 04235_ EXIT=FOUND 04238_ O-16 Technician sends out distress signal. 04238_ O-16 Technician: "IFF HANDSHAKE FAILED. SECURING TERMINAL." 04240_ ALERT: Hostiles spotted, dispatching reinforcements to Terminal M007. 04243_ G-47 Trooper destroyed. 04243_ K-01 Serf collects debris. 04246_ Destroyed Particle Gun. 04247_ K-01 Serf collects debris. 04258_ O-16 Technician destroyed. 04258_ Terminal disabled. 04261_ Acquired 6 matter. 04285_ The unstable cave ceiling collapses. 04285_ Crushed by falling debris. 04285_ Wheel destroyed. 04285_ System corrupted by crushing effect (+4). 04285_ Arm. Wheel destroyed. 04285_ System corrupted by crushing effect (+4). Map ----- +----------------------------------------------------+ | """ #?????# """ ""? + #????#?????????????? | | """ ""#?????# # #??? ???#?????????? | | """ T"#?????# ! # #???"" #?????????? | | "" ""#?????######/######?# #??""" #?????????? | | #??????????# #??????# #? """ #?????????? | | #######????????### #??????# # ??????????? | | ###????????##### ??????# # """ ??????????? | | #????????# ??????# + """ ??????????? | | #????????# Y ??????# # """ ??????????? | | #????????# ??????# # ??????????? | | " #????????# ??????# ############???????? | | " #????????# ## ??????# #???????? | | " #????????# ## ??????# < #???????? | | #????????###### ??????# =% #???????? | | #?????????????# ????######/######+####???????? | | ##########??????# ????# # #???????? | | #??????# g ????# # """ #???????? | | ######## ????# """ # """ #???????? | | ????????????????????????# """ # """ #???????? | | ????????????????????????# """ + #???????? | | ????????????????????????# # #???????? | | ????????????????????????# """ #= * #???????? | | ????????????g???????????# """ # T" #???????? | | ????????????????????????# """ # #???????? | | ???#??????????g?????????# ##########???????? | | ? ????????l????????##@ #????????????????? | | ????????????????##########????????????????? | | ????????????????# #???????????????????????? | | ????????????????###???????????????????????? | | ???????????????????????????????????????????? | | ""?????????????????????????????Y?????????????? | | """??????????????????????????????????????????? | | """ ?]]!????????????????????????????????????? | | ^ ? ]! ????????????????????????????????????? | | ? ]! ???????????????????????????????????? | | "" """ ???????????????????????????????????? | | "" """ ???????????????????????????????????? | | "" """ ???????????????????????????????????? | | ????????????????????Y?????????????? | | ??????????????????????????????????? | | ! ???????????????????????????????????? | | ######??????????????????????????????????????? | | #???????????????????????????????????????????? | | #???????????????????????????????????????????? | | # #???????????????????????????????????????????? | | # #???????????????????????????????????????????? | | # #???????????????????????????????????????????? | | + #???????????????????????????????????????????? | | # #???????????????????????????????????????????? | | # #???????????????????????????????????????????? | +----------------------------------------------------+ Best States ------------- Heat Dissipation 45 Energy Generation 14 Energy Capacity 280 Matter Stores 300 Matter Capacity 300 Sight Range 16 Terrain Scan Density 10 Armor Coverage 150 Evasion (%) 42 Recoil Reduction 3 Item Schematics ----------------- None Robot Schematics ------------------ None Fabricated ------------ Nothing Alien Tech Used ----------------- None Achievements -------------- None Challenges ------------ None Game ------ Seed LinkedThermalPlating Manual? 0 Play Time 00:36:50 Cumulative 741.1 hours Start 2020.06.20 @ 18:09:51 End 2020.06.20 @ 18:44:13 Sessions 1 Manual Loads 0 Difficulty Rogue Special Mode None Game No. 399 Rogue 399 Adventurer 0 Explorer 0 Win Type - Total 61 Types 34/4/13/6/1/1/2 Lore% 90 Gallery% 87 Achievement% 75 Wizard Run 0 Options --------- ASCII 0 Keyboard 0 Movement Mouse Keybinds 0 Fullscreen 0 Font 32/Smallcaps Map View 76x50 Tactical HUD 1 Map Filters NONE Filters NONE Steam 0 RUN: 104440ed-fa65-4d06-b1bb-2af3df8f235a